Cogmind - Beta 16 @@@ ROGUE MODE // 2025.12.27 @ 15:32:34 Player: Compilatron Result: Self-destructed Performance ------------- Evolutions (1) 500 Regions Visited (4) 800 Robots Destroyed (19) 95 Value Destroyed (337) 337 Prototype IDs (0) 0 Alien Tech Used (0) 0 Bonus (-135) -135 TOTAL SCORE: 1597 Bonus ------- Follower Combat Kills 14 Friendly Fire -149 Cogmind --------- Core Integrity 185/400 Matter 286/300 Energy 100/100 System Corruption 0% Temperature Cool (0) Movement Walking (190) Ox1 Location -9/Mines Parts ------- > --- POWER (1) -------- (None) > --- PROPULSION (3) --- Aluminum Leg > --- UTILITY (3) ------ Large Storage Unit > --- WEAPON (2) ------- (None) > --- INVENTORY (15) --- Ion Engine Ion Engine Light Treads Light Treads Makeshift Leg Visual Processing Unit Beam Rifle Light Assault Rifle Light Assault Rifle Autogun Peak State ------------ > --- POWER ------------ Ion Engine > --- PROPULSION ------- Aluminum Leg Aluminum Leg Aluminum Leg > --- UTILITY ---------- Large Storage Unit Light Armor Plating > --- WEAPON ----------- Beam Rifle Light Assault Rifle > --- INVENTORY -------- Ion Engine Ion Engine Light Treads Light Treads Makeshift Leg Visual Processing Unit Autogun Grenade Launcher [Rating: 10] Favorites ----------- Power Ion Engine Engine Ion Engine Propulsion Aluminum Leg Leg Aluminum Leg Wheel Wheel Utility Large Storage Unit Storage Large Storage Unit Protection Light Armor Plating Weapon Light Assault Rifle Energy Gun Beam Rifle Ballistic Gun Light Assault Rifle Launcher Grenade Launcher Build | -11 -10 -10 -9 -9 ------- Run | Yrd Mat Min Mat Min Slots Evolved 2 | . . . 2 . Power . | . . . . . Propulsion 1 | . . . 1 . Utility 1 | . . . 1 . Weapon . | . . . . . Parts Attached 12 | . 7 1 4 . Power 2 | . 1 . 1 . Engine 2 | . 1 . 1 . Core . | . . . . . Reactor . | . . . . . Propulsion 4 | . 3 . 1 . Treads . | . . . . . Leg 3 | . 2 . 1 . Wheel 1 | . 1 . . . Hover . | . . . . . Flight . | . . . . . Utility 2 | . 1 . 1 . Device . | . . . . . Storage 1 | . 1 . . . Processor . | . . . . . Hackware . | . . . . . Protection 1 | . . . 1 . Artifact . | . . . . . Weapon 4 | . 2 1 1 . Energy Gun 2 | . 1 . 1 . Energy Cannon . | . . . . . Ballistic Gun 1 | . 1 . . . Ballistic Cannon . | . . . . . Launcher 1 | . . 1 . . Special Weapon . | . . . . . Impact Weapon . | . . . . . Slashing Weapon . | . . . . . Piercing Weapon . | . . . . . Special Melee Weapon . | . . . . . Unidentified Prototypes . | . . . . . Parts Lost 11 | . 5 . . 6 Power 2 | . 1 . . 1 Propulsion 4 | . 2 . . 2 Utility 1 | . . . . 1 Weapon 4 | . 2 . . 2 Highest Loss Streak 6 | . 5 . . 6 To Critical Strikes . | . . . . . Average Backups 7 | 5 6 6 5 8 Power 1 | 1 1 2 2 2 Propulsion 2 | 3 2 3 2 2 Utility . | . . . . 1 Weapon 2 | 1 1 1 . 3 Tool/Special . | . . . . . Unused Backups 16 | . 8 . . 8 Power 4 | . 3 . . 1 Propulsion 5 | . 2 . . 3 Utility 2 | . 1 . . 1 Weapon 5 | . 2 . . 3 Tool/Special . | . . . . . Average Slot Usage (%) 84 | . 74 85 83 87 Engine 11 | . 11 14 9 11 Leg 30 | . 21 28 33 33 Storage 11 | . 14 14 11 11 Protection 7 | . . . 7 11 Energy Gun 10 | . 13 2 8 10 Ballistic Gun 11 | . 10 14 11 11 Launcher 1 | . . 11 2 . Peak Build Rating 10 | 6 6 6 9 10 Average Rating 8 | 6 5 6 8 9 On Entrance 6 | 6 6 6 6 9 Avg Prop Armor Cover (%) 12 | . 12 . . . Naked Turns . | . . . . . Heaviest Build 32 | 11 27 29 32 32 Greatest Support 30 | 20 20 20 30 30 Greatest Overweight (x) 2 | . 2 1 1 1 Average Overweight (x) . | . . 1 . 1 Largest Inventory Capacity 15 | 8 15 15 15 15 Average Capacity 14 | 8 12 15 15 15 Most Carried 10 | 5 8 6 6 10 Average Carried 7 | 5 6 6 5 8 Final Capacity 15 | 8 15 15 15 15 Final Carried 10 | 5 6 6 6 10 Class Distribution -------------------- 100% | Mutant Dominant Class ---------------- Mutant | -10/Materials Mutant | -10/Mines Mutant | -9/Materials Mutant | -9/Mines Resources | -11 -10 -10 -9 -9 ----------- Run | Yrd Mat Min Mat Min Matter Collected 390 | 172 55 . 158 5 Remotely . | . . . . . Salvage Created 579 | . 298 47 123 111 Parts 25 | . 12 6 3 4 Haulers Intercepted . | . . . . . Recyclers Shooed . | . . . . . Parts Field Recycled . | . . . . . Retrieved Matter . | . . . . . Parts Self-Destructed . | . . . . . Prevented . | . . . . . Parts Restored . | . . . . . Kills | -11 -10 -10 -9 -9 ------- Run | Yrd Mat Min Mat Min Combat Hostiles Destroyed 21 | . 4 6 1 10 Guns 8 | . 4 . 1 3 AOE 13 | . . 6 . 7 Classes Destroyed 7 | . 4 1 1 1 Worker 1 | . 1 . . . Recycler 2 | . 1 . 1 . Watcher 1 | . 1 . . . Swarmer 7 | . . 6 . 1 Grunt 6 | . 4 . . 2 Sentry 1 | . . . 1 . Assembled 8 | . . . . 8 Thug 1 | . . . . 1 Best Kill Streak 8 | . 4 3 2 8 Combat Bots Only 8 | . 2 3 1 8 Max Kills in Single Turn 7 | . 1 3 1 7 Gunslinging . | . . . . . Exploded 5 | . . 3 . 5 Melee . | . . . . . Uniques/NPCs Destroyed . | . . . . . Combat | -11 -10 -10 -9 -9 -------- Run | Yrd Mat Min Mat Min Hostile Shots Fired 148 | . 61 29 14 44 Missed 34 | . 8 12 6 8 Hits 114 | . 53 17 8 36 Melee 11 | . . . . 11 Projectile 103 | . 53 17 8 25 Critical Strikes 1 | . . 1 . . Damage Taken 1585 | . 662 165 124 634 Core 341 | . 92 34 47 168 Absorbed by Shields . | . . . . . Regen/Repaired (Parts) 41 | . . . 41 . Core Remaining (%) 74 | 100 . 49 . . Volleys Fired 50 | . 26 8 7 9 Largest 2 | . 2 2 2 2 Hottest 76 | . 60 60 60 76 Shots Fired 86 | . 40 15 14 17 Gun 79 | . 40 11 14 14 Cannon . | . . . . . Launcher 7 | . . 4 . 3 Special . | . . . . . Kinetic 39 | . 15 8 7 9 Thermal 31 | . 16 3 7 5 Explosive 7 | . . 4 . 3 Electromagnetic 9 | . 9 . . . Robot Hit Streak 8 | . 5 8 5 5 Robot Miss Streak 3 | . 3 1 2 1 Penetration Max . | . . . . . Secondary Targets . | . . . . . Shots Hit Robots 53 | . 25 10 9 9 Core Hits 52 | . 13 7 5 27 Critical Kills . | . . . . . Critical Parts Destroyed . | . . . . . Critical Strikes . | . . . . . Melee Attacks . | . . . . . Impact . | . . . . . Slashing . | . . . . . Piercing . | . . . . . Sneak Attacks . | . . . . . Combat Hostiles . | . . . . . Follow-up Attacks . | . . . . . Damage Inflicted 1620 | . 497 301 78 744 Guns 505 | . 284 66 78 77 Cannons . | . . . . . Explosions 1112 | . 213 235 . 664 Melee . | . . . . . Ramming 3 | . . . . 3 Kinetic 214 | . 89 33 45 47 Thermal 402 | . 306 33 33 30 Explosive 899 | . . 235 . 664 Electromagnetic 102 | . 102 . . . Impact . | . . . . . Slashing . | . . . . . Piercing . | . . . . . Highest Corruption . | . . . . . Average Corruption . | . . . . . Corruption Purged . | . . . . . Corruption Blocked . | . . . . . Overload Shots . | . . . . . Overflow Damage 22 | . . . . 22 Projectiles . | . . . . . Explosions 22 | . . . . 22 Melee . | . . . . . Knockbacks . | . . . . . Impact . | . . . . . Kinetic . | . . . . . Secondary . | . . . . . Self-Inflicted Damage 124 | . 65 35 . 24 Shots 6 | . 2 2 . 2 Rammed . | . . . . . Targets Rammed 4 | . . . . 4 Kicked 4 | . . . . 4 Crushed . | . . . . . Highest Temperature 181 | . 181 20 28 64 Average Temperature 37 | . 56 10 13 26 Received Heat Transfer 458 | . 306 . 36 116 Siege Activations . | . . . . . Martial Activations . | . . . . . Shielding Activations . | . . . . . Robots Disrupted . | . . . . . Combat Hostiles . | . . . . . Robots Corrupted . | . . . . . Combat Hostiles . | . . . . . Parts Fried 1 | . 1 . . . Impact Corruptions . | . . . . . Robots Melted . | . . . . . Combat Hostiles . | . . . . . Parts Melted . | . . . . . Heat Transferred 749 | . 525 75 75 74 Parts Sabotaged . | . . . . . Parts Stolen . | . . . . . Parts Stripped . | . . . . . Power Chain Reactions 2 | . 2 . . . Alert | -11 -10 -10 -9 -9 ------- Run | Yrd Mat Min Mat Min Maximum Alert Level . | . . . . . Low Security (%) 100 | 100 100 100 100 100 Level 1 . | . . . . . Level 2 . | . . . . . Level 3 . | . . . . . Level 4 . | . . . . . Level 5 . | . . . . . High Security . | . . . . . Max Security . | . . . . . Peak Influence 137 | . 48 137 54 61 Initial 49 | . . 1 49 . Average 12 | . 6 73 21 5 Influence Increases 499 | . 145 166 51 137 Destroy 0b10 Robot/C 300 | . 80 120 20 80 Destroy 0b10 Robot/NC 20 | . 15 . 5 . Destroy Leader 62 | . 12 20 10 20 Allied During Kill 8 | . . . . 8 Successful Hack 31 | . 15 . 16 . Disable Machine 15 | . . . . 15 Destroy Structure 48 | . 8 26 . 14 Lose Combat Pursuer 15 | . 15 . . . Influence Decreases 499 | . 140 44 178 137 Entered New Map 82 | . . 4 78 . Time Decay 349 | . 100 40 100 109 Lost Part 48 | . 40 . . 8 Lost Ally 20 | . . . . 20 Squads Dispatched 2 | . 1 . . 1 Investigation . | . . . . . Extermination . | . . . . . Reinforcement 2 | . 1 . . 1 Assault . | . . . . . Garrison . | . . . . . Intercept . | . . . . . Searches Triggered . | . . . . . Construction Impeded 1 | . . . . 1 Haulers Reinforced . | . . . . . Active Scanning Responses . | . . . . . Cargo Convoy Interrupts . | . . . . . Stealth | -11 -10 -10 -9 -9 --------- Run | Yrd Mat Min Mat Min Distress Signals 4 | . 1 . 3 . Communications Jammed . | . . . . . Distress Signals . | . . . . . Times Spotted 42 | . 12 6 2 22 Peak Tracking Total 17 | . 4 3 1 17 Tactical Retreats 1 | . 1 . . . Traps | -11 -10 -10 -9 -9 ------- Run | Yrd Mat Min Mat Min Traps Triggered . | . . . . . Indirectly . | . . . . . Trap Hack Attempts . | . . . . . Triggered . | . . . . . Disarmed . | . . . . . Reprogrammed . | . . . . . Reused . | . . . . . Traps Extracted . | . . . . . Installed . | . . . . . Triggered . | . . . . . Machines | -11 -10 -10 -9 -9 ---------- Run | Yrd Mat Min Mat Min Machines Disabled 1 | . . . . 1 Max in Single Turn 1 | . . . . 1 Machines Repaired . | . . . . . Machines Dismantled . | . . . . . Machines Sabotaged . | . . . . . Overloaded Fab Kills . | . . . . . Hacking | -11 -10 -10 -9 -9 --------- Run | Yrd Mat Min Mat Min Machines Accessed 8 | . 4 . 4 . Terminals 5 | . 3 . 2 . Fabricators . | . . . . . Repair Stations 1 | . . . 1 . Recycling Units 2 | . 1 . 1 . Scanalyzers . | . . . . . Garrison Access . | . . . . . Total Hacks 27 | . 7 . 20 . Successful 14 | . 6 . 8 . Failed 13 | . 1 . 12 . Catastrophic 2 | . . . 2 . Database Lockouts . | . . . . . Manual 17 | . 7 . 10 . Terminals 19 | . 6 . 13 . Fabricators . | . . . . . Repair Stations 6 | . . . 6 . Recycling Units 2 | . 1 . 1 . Scanalyzers . | . . . . . Garrison Access . | . . . . . Terminal Hacks . | . . . . . Fabricator Hacks . | . . . . . Repair Station Hacks 4 | . . . 4 . Scan Component 2 | . . . 2 . Repair 2 | . . . 2 . Recycling Unit Hacks . | . . . . . Scanalyzer . | . . . . . Garrison Access Hacks . | . . . . . Unauthorized Hacks 10 | . 6 . 4 . Terminals 9 | . 5 . 4 . Track 2 | . 1 . 1 . Assimilate 1 | . 1 . . . Botnet 4 | . 2 . 2 . Operators 2 | . 1 . 1 . Fabricators . | . . . . . Repair Stations . | . . . . . Recycling Units 1 | . 1 . . . Reject 1 | . 1 . . . Scanalyzers . | . . . . . Garrison Access . | . . . . . Data Cores Recovered . | . . . . . Used . | . . . . . Hacking Detections 7 | . 3 . 4 . Full Trace Events . | . . . . . Feedback Events . | . . . . . Feedback Blocked . | . . . . . Robot Schematics Acquired . | . . . . . Robots Built . | . . . . . Authchips . | . . . . . Time . | . . . . . Total Robot Build Rating . | . . . . . Part Schematics Acquired . | . . . . . Parts Built . | . . . . . Authchips . | . . . . . Time . | . . . . . Total Part Build Rating . | . . . . . Part Studies Acquired . | . . . . . Parts Repaired 2 | . . . 2 . Time 52 | . . . 52 . Parts Recycled . | . . . . . Recycled Matter . | . . . . . Retrieved Matter . | . . . . . Retrieved Components . | . . . . . Parts Scanalyzed . | . . . . . Part Schematics Acquired . | . . . . . Parts Damaged . | . . . . . Bothacking | -11 -10 -10 -9 -9 ------------ Run | Yrd Mat Min Mat Min Used RIF Installer . | . . . . . Robots Hacked . | . . . . . Non-combat . | . . . . . Combat . | . . . . . Robot Hacks Applied . | . . . . . Relay Couplers Released . | . . . . . Fabnet Peak Effective % . | . . . . . Robots Rewired . | . . . . . Allies Hacked . | . . . . . Hacks Repelled . | . . . . . Allies | -11 -10 -10 -9 -9 -------- Run | Yrd Mat Min Mat Min Total Allies 5 | . . . . 5 Largest Group 4 | . . . . 4 Highest-Rated Group 71 | . . . . 71 Highest-Rated Ally 31 | . . . . 31 Total Orders . | . . . . . Ally Attacks 21 | . . . . 21 Total Damage 142 | . . . . 142 Kills 3 | . . . . 3 Allies Corrupted . | . . . . . Allies Melted . | . . . . . Intel | -11 -10 -10 -9 -9 ------- Run | Yrd Mat Min Mat Min Active Infowar (turns) . | . . . . . Robot Analysis Total . | . . . . . Derelict Logs Recovered 2 | . . . . 2 Drone Launches . | . . . . . Drone Recoveries . | . . . . . Exploration | -11 -10 -10 -9 -9 ------------- Run | Yrd Mat Min Mat Min Turns Passed 1786 | 1 386 97 310 992 Spaces Moved 901 | 1 213 40 148 499 Core . | . . . . . Treads . | . . . . . Legs 846 | 1 158 40 148 499 Wheels 55 | . 55 . . . Hover . | . . . . . Flight . | . . . . . Fastest Speed 110 | 120 110 190 120 190 Average Speed 175 | 120 140 190 171 190 Slowest Speed 260 | 120 260 190 190 190 Overloaded Moves . | . . . . . Propulsion Burnouts . | . . . . . Robots Hopped . | . . . . . Potential Cave-ins . | . . . . . Cave-ins Triggered . | . . . . . Exploration Rate (%) 34 | 2 50 19 16 83 Regions Visited 4 Branch Regions 2 Pre-discovered Areas 1 | . . . . 1 Known Exits Taken . | . . . . . Unknown Exits Taken 4 | 1 1 1 1 . Scrap Searched 1 | . . . . 1 Spaces Dug . | . . . . . Terrain Destroyed 61 | . 15 28 . 18 Melee . | . . . . . Projectile . | . . . . . AOE 61 | . 15 28 . 18 Terrain Rammed . | . . . . . Walls Destroyed . | . . . . . Machines Disabled . | . . . . . Actions | -11 -10 -10 -9 -9 --------- Run | Yrd Mat Min Mat Min Total 1027 | 1 264 48 191 523 Wait 37 | . 5 . 26 6 Move 897 | . 212 39 147 499 Hop . | . . . . . Pick Up 19 | . 10 . 5 4 Fast Attach . | . . . . . Attach 8 | . 5 . 3 . Detach . | . . . . . Swap 6 | . 2 1 2 1 Drop 6 | 1 4 . 1 . Fire 50 | . 26 8 7 9 Melee . | . . . . . Ram . | . . . . . Kick 4 | . . . . 4 Crush . | . . . . . Escape Stasis . | . . . . . Rewire . | . . . . . Trap . | . . . . . Miscellaneous . | . . . . . Route ------- -11/Scrapyard -10/Materials -10/Mines (discovered 2 exits: *Mat x2) -9/Materials -9/Mines (discovered 2 exits: [*Mat x2]) History --------- Turn | Location | Event 2 | -11/Scrapyard | Discovered new exit (range 0) 2 | -11/Scrapyard | Entered Materials 272 | -10/Materials | Lost 5 parts (1p2n2w) 349 | -10/Materials | Build established: Mutant 356 | -10/Materials | Discovered new exit (range 13) 388 | -10/Materials | Entered Mines 452 | -10/Mines | Discovered new exit (range 10) 466 | -10/Mines | Core integrity fell below 50% 476 | -10/Mines | Discovered new exit (range 11) 485 | -10/Mines | Entered Materials 485 | -9/Materials | Evolved 2 slots: Propulsion x1, Utility x1 498 | -9/Materials | Repaired Sml. Laser 524 | -9/Materials | Repaired Ion Engine 539 | -9/Materials | Discovered new exit (range 16) 716 | -9/Materials | Met 8R-AWN 795 | -9/Materials | Entered Mines 797 | -9/Mines | Followed 8R-AWN into the Mines 852 | -9/Mines | Learned location of Storage (-8) 947 | -9/Mines | Discovered new exit (range 7) 1005 | -9/Mines | Discovered new exit (range 14) 1366 | -9/Mines | Learned location of 1 exit from Proximity Caves 1445 | -9/Mines | Assisted by bots powering up and referring to "LRC-V3" 1742 | -9/Mines | Assembled infested the area 1747 | -9/Mines | Assisted by a Guerilla fighting off Assembled 1787 | -9/Mines | Self-destructed Last Messages --------------- 01777_ as-37723 destroyed. 01777_ Destroyed Asb. Hover Unit. 01777_ Trooper 2b destroyed. 01777_ as-91537 destroyed. 01777_ as-74802 destroyed. 01777_ as-38306 destroyed. 01777_ as-19896 destroyed. 01777_ Grenade Launcher destroyed. 01777_ Destroyed Grenade Launcher. 01777_ YQ-DJ7(g) destroyed. 01779_ as-56489 destroyed. 01780_ Ion Engine destroyed. 01780_ Lgt. Armor Plating destroyed. 01780_ Aluminum Leg destroyed. 01783_ The unstable cave ceiling collapses. 01783_ Lgt. Assault Rifle destroyed. 01783_ Aluminum Leg destroyed. 01783_ Trooper 2a knocked back. 01785_ Trooper 2a destroyed. 01785_ Mercenary 2a destroyed. Map ----- +----------------------------------------------------+ | ??## ##?????## #???# ####?? | | ???## ##??????# #### #????? | | ????# %% ##???????# #????? | | ##### ##????????## #????? | | ####??????????## ######????? | | ######?????????## #####????? | | #### ## #####??????## #????? | | ???## ##??????# #????? | | ???#### ##?????## #????? | | ???##?## ##?????### #????? | | ???????######### #???????### #????? | | ??????????????## #?????????# #????? | | ?????????????## ##????????# #????? | | ???????????### #??????### #????? | | ??????????## #??????# #????? | | ??????????# #??????# ####????? | | ??????????# ##??????# #???????? | | ??????????## ###???????# #???????? | | ???????????##########?????????# #???????? | | ??????????????????????????????# #???????? | | ??????????????????????????????# #???????? | | ???????????????????????######## #???????? | | ???????????????????????# a =!=#???????? | | ???????????????????????# a%%[#???????? | | ???????????????????????# aa %!##???????? | | ##?????????????????????##@ a ##????????? | | "" ????????????????????# aaa #????????? | | ""?????????????????????# a # ?????? | | ""???????????????????? a # # #???? | | ??????????????????? #### #???? | | ???????????????????? a #???? ##???? | | ??????????????????? ##????? ##????? | | ?????????????????? ???????#?????? | | ?????????????????## ?????????????? | | ??????????????????## ##?????????????? | | ???????????????????## ???????????????? | | ????????????????????### ???????????????? | | ??????????????????????# ???????????????? | | ?????????????????????? ???????????????? | | ?????????????????????? ???????????????? | | ???????????????????????##???????????????? | | ????????????????????????????????????????? | | ????????????????????????????????????????? | | ????????????????????????????????????????? | | ????????????????????????????????????????? | | ????????????????????????????????????????? | | ????????????????????????????????????????? | | ????????????????????????????????????????? | | ????????????????????????????????????????? | | | +----------------------------------------------------+ Best States ------------- Heat Dissipation 28 Energy Generation 10 Energy Capacity 250 Matter Stores 300 Matter Capacity 300 Sight Range 16 Terrain Scan Density 10 Armor Coverage 150 Evasion (%) 55 Item Schematics ----------------- None Robot Schematics ------------------ None Fabricated ------------ Nothing Repaired ---------- Ion Engine | 31% | -9/Materials Studied --------- None Alien Tech Used ----------------- None Achievements -------------- Follow The Leader Challenges ------------ None Game ------ Seed CouplerChipCutter Manual? 0 Play Time 00:13:41 Cumulative 68.4 hours Start 2025.12.27 @ 15:21:42 End 2025.12.27 @ 15:32:34 Sessions 1 Manual Loads 0 Difficulty Rogue Special Mode None Game No. 108 Rogue 86 Adventurer 20 Explorer 2 Win Type - Total 0 Types 0/0/0/0/0/0/0/0/0/0 Lore% 44 Gallery% 39 Achievement% 27 Wizard Run 0 Options --------- Layout 1 ASCII 0 Keyboard 0 Movement Numpad Keybinds 0 Fullscreen 2 Font 24/Smallcaps Map View 50x35 Zoom Use 0% Tactical HUD 1 Map Filters NONE Filters NONE Steam 1 RUN: 13c13836-6bce-4f23-a5da-59291454d5f3